fUSD/lending_fUSD_20251123
["ID","MTS","AMOUNT","RATE_DAILY","PERIOD"]
[394779570,1763940632577,-205.53666149,0.00025,2]
[394779572,1763940632586,-1767.73206127,0.00025,2]
[394779574,1763940632595,-190.93242951,0.00025,2]
[394779577,1763940632605,-360.0,0.00025,2]
[394779580,1763940632614,-4910.33541208,0.00025,21]
[394779582,1763940632623,-3014.99090652,0.00025,2]
[394779583,1763940632632,-20140.92108275,0.00025879,2]
[394779584,1763940632642,-1098.33760372,0.00025999,2]
[394779585,1763940632652,-4480.83303238,0.00026,2]
[394779586,1763940632661,-27229.38275045,0.000264,2]
[394779587,1763940632671,-500.0,0.00026973,2]
[394779588,1763940632680,-500.0,0.00026973,2]
[394779589,1763940632689,-500.0,0.00026973,2]
[394779590,1763940632698,-500.0,0.00026973,2]
[394779591,1763940632707,-500.0,0.00026973,2]
[394779592,1763940632716,-500.0,0.00026973,2]
[394779593,1763940632725,-277.792036,0.00026973,2]
[394779594,1763940632735,-501.66929625,0.00026999,2]
[394779595,1763940632744,-500.0,0.00026999,2]
[394779596,1763940632754,-500.0,0.00026999,2]
[394779597,1763940632763,-500.0,0.00026999,2]
[394779598,1763940632773,-500.0,0.00026999,2]
[394779599,1763940632782,-500.0,0.00026999,2]
[394779600,1763940632793,-225.76708795,0.00026999,2]
[394779601,1763940632803,-500.0,0.00026999,2]
[394779602,1763940632814,-500.0,0.00026999,2]
[394779603,1763940632823,-500.0,0.00026999,2]
[394779604,1763940632832,-500.0,0.00026999,2]
[394779605,1763940632842,-500.0,0.00026999,2]
[394779606,1763940632851,-500.0,0.00026999,2]
[394779607,1763940632860,-500.0,0.00026999,2]
[394779608,1763940632870,-201.11408241,0.00026999,2]
[394779609,1763940632879,-500.0,0.00026999,2]
[394779610,1763940632890,-500.0,0.00026999,2]
[394779611,1763940632899,-442.06960664,0.00026999,2]
[394779612,1763940632908,-500.0,0.00026999,2]
[394779613,1763940632918,-500.0,0.00026999,2]
[394779614,1763940632927,-500.0,0.00026999,2]
[394779615,1763940632936,-206.79501577,0.00026999,2]
[394779616,1763940632945,-622.93316564,0.00026999,2]
[394779617,1763940632955,-500.0,0.00026999,2]
[394779618,1763940632964,-500.0,0.00026999,2]
[394779619,1763940632974,-500.0,0.00026999,2]
[394779620,1763940632983,-500.0,0.00026999,2]
[394779621,1763940632992,-500.0,0.00026999,2]
[394779622,1763940633001,-500.0,0.00026999,2]
[394779623,1763940633010,-500.0,0.00026999,2]
[394779624,1763940633019,-500.0,0.00026999,2]
[394779625,1763940633028,-500.0,0.00026999,2]
[394779626,1763940633038,-500.0,0.00026999,2]
[394779627,1763940633047,-500.0,0.00026999,2]
[394779628,1763940633058,-500.0,0.00026999,2]
[394779629,1763940633067,-500.0,0.00026999,2]
[394779630,1763940633077,-500.0,0.00026999,2]
[394779631,1763940633086,-500.0,0.00026999,2]
[394779632,1763940633096,-500.0,0.00026999,2]
[394779633,1763940633105,-500.0,0.00026999,2]
[394779634,1763940633115,-500.0,0.00026999,2]
[394779635,1763940633124,-500.0,0.00026999,2]
[394779636,1763940633133,-500.0,0.00026999,2]
[394779637,1763940633143,-500.0,0.00026999,2]
[394779638,1763940633153,-500.0,0.00026999,2]
[394779639,1763940633163,-500.0,0.00026999,2]
[394779640,1763940633172,-500.0,0.00026999,2]
[394779641,1763940633182,-500.0,0.00026999,2]
[394779642,1763940633192,-500.0,0.00026999,2]
[394779643,1763940633201,-500.0,0.00026999,2]
[394779644,1763940633211,-500.0,0.00026999,2]
[394779645,1763940633220,-500.0,0.00026999,2]
[394779646,1763940633229,-500.0,0.00026999,2]
[394779647,1763940633239,-500.0,0.00026999,2]
[394779648,1763940633248,-500.0,0.00026999,2]
[394779649,1763940633258,-255.7449888,0.00026999,2]
[394779650,1763940633267,-500.0,0.00026999,2]
[394779651,1763940633277,-500.0,0.00026999,2]
[394779652,1763940633286,-500.0,0.00026999,2]
[394779653,1763940633295,-499.99999999,0.00026999,2]
[394779654,1763940633304,-500.0,0.00026999,2]
[394779655,1763940633313,-500.0,0.00026999,2]
[394779656,1763940633323,-500.0,0.00026999,2]
[394779657,1763940633332,-500.0,0.00026999,2]
[394779658,1763940633342,-500.0,0.00026999,2]
[394779659,1763940633351,-500.0,0.00026999,2]
[394779660,1763940633360,-500.0,0.00026999,2]
[394779661,1763940633371,-500.0,0.00026999,2]
[394779662,1763940633383,-500.0,0.00026999,2]
[394779663,1763940633393,-500.0,0.00026999,2]
[394779664,1763940633402,-500.0,0.00026999,2]
[394779665,1763940633411,-500.0,0.00026999,2]
[394779666,1763940633422,-500.0,0.00026999,2]
[394779667,1763940633431,-500.0,0.00026999,2]
[394779668,1763940633441,-500.0,0.00026999,2]
[394779669,1763940633454,-500.0,0.00026999,2]
[394779670,1763940633465,-500.0,0.00026999,2]
[394779671,1763940633475,-500.0,0.00026999,2]
[394779672,1763940633484,-550.0,0.00026999,2]
[394779673,1763940633494,-500.0,0.00026999,2]
[394779674,1763940633503,-500.0,0.00026999,2]
[394779675,1763940633512,-500.0,0.00026999,2]
[394779676,1763940633521,-500.0,0.00026999,2]
[394779677,1763940633530,-500.0,0.00026999,2]
[394779678,1763940633540,-500.0,0.00026999,2]
[394779679,1763940633549,-500.0,0.00026999,2]
[394779680,1763940633558,-250.0,0.00027,2]
[394779681,1763940633567,-1023.80737343,0.00027,2]
[394779682,1763940633577,-530.0,0.00027,2]
[394779683,1763940633586,-596.46237665,0.0002739,2]
[394779684,1763940633596,-4226.88,0.00028,2]
[394779685,1763940633605,-2759.74782242,0.00028,60]
[394779686,1763940633614,-158.7,0.00028134,2]
[394779687,1763940633624,-999.0,0.00028928,3]
[394779688,1763940633633,-2406.38,0.00032302,2]
[394779689,1763940633643,-9999.99,0.00032302,2]
[394779690,1763940633652,-2339.5,0.00034301,2]
[394779691,1763940633661,-1443.46,0.00034301,2]
[394779692,1763940633671,-3291.0,0.00034731,2]
[394779693,1763940633680,-8463.95,0.00034731,2]
[394779694,1763940633690,-797.3,0.00034731,2]
[394779695,1763940633699,-500.0,0.00035573,5]
[394779696,1763940633709,-22095.2672041,0.00035588,3]
[394779697,1763940633718,-87022.56589019,0.00035598,2]
[394779698,1763940633731,-26524.69410981,0.00035598,2]
[394779699,1763940633740,-1578.23337172,0.00035763,3]
[394779700,1763940633749,-2459.31068395,0.00035773,2]
[394779701,1763940633759,-500.0,0.00035873,5]
[394779702,1763940633767,-1529.14991139,0.00035888,3]
[394779703,1763940633779,-6362.01694721,0.00035888,3]
[394779704,1763940633788,-1938.49,0.00035895,2]
[394779705,1763940633797,-151.0,0.00035895,14]
[394779706,1763940633806,-32199.22,0.00035898,2]
[394779707,1763940633815,-833.88,0.00036203,2]
[394779708,1763940633824,-1578.23337172,0.00036333,4]
[394779709,1763940633834,-2459.31068394,0.00036343,2]
[394779710,1763940633843,-150.0,0.00036888,7]
[394779711,1763940633852,-150.0,0.00036888,7]
[394779712,1763940633861,-178.73504545,0.00036888,7]
[394779713,1763940633870,-150.0,0.00036888,7]
[394779714,1763940633880,-150.0,0.00036888,7]
[394779715,1763940633891,-2459.31068394,0.00036912,2]
[394779716,1763940633900,-1000.0,0.00036942,2]
[394779717,1763940633911,-166.66,0.00037101,30]
[394779718,1763940633921,-426.56612961,0.00037245,2]
[394779719,1763940633930,-873.25,0.00037281,5]
[394779720,1763940633940,-1578.23337172,0.00037282,4]
[394779721,1763940634135,-2751.0,0.00037292,120]
[394779722,1763940634148,-2459.31068394,0.00037482,2]
[394779723,1763940634158,-158.7,0.00037512,2]
[394779724,1763940634168,-339.17,0.00037732,2]
[394779725,1763940634177,-166.66,0.00037882,30]
[394779726,1763940634187,-1578.23337172,0.00038042,4]
[394779727,1763940634196,-2459.31068394,0.00038052,2]
[394779728,1763940634205,-1578.23337172,0.00038145,4]
[394779729,1763940634214,-5970.33424698,0.00038155,2]
[394779730,1763940634223,-672.13911755,0.00038216,4]
[394779731,1763940634235,-2484.32762589,0.00038216,4]
[394779732,1763940634244,-3156.46674344,0.00038217,4]
[394779733,1763940634252,-162.99667774,0.00038226,15]
[394779734,1763940634262,-301.96106709,0.00038226,15]
[394779735,1763940634271,-500.0,0.00038226,15]
[394779736,1763940634280,-500.0,0.00038226,15]
[394779737,1763940634289,-500.0,0.00038226,15]
[394779738,1763940634299,-500.0,0.00038226,15]
[394779739,1763940634308,-500.0,0.00038226,15]
[394779740,1763940634319,-550.69477611,0.00038226,15]
[394779741,1763940634329,-500.0,0.00038226,15]
[394779742,1763940634340,-500.0,0.00038226,15]
[394779743,1763940634349,-500.0,0.00038226,15]
[394779744,1763940634360,-500.0,0.00038226,15]
[394779745,1763940634370,-500.0,0.00038226,15]
[394779746,1763940634383,-500.0,0.00038226,15]
[394779747,1763940634393,-500.0,0.00038226,15]
[394779748,1763940634403,-500.0,0.00038226,15]
[394779749,1763940634413,-500.0,0.00038226,15]
[394779750,1763940634424,-500.0,0.00038226,15]
[394779751,1763940634434,-500.0,0.00038226,15]
[394779752,1763940634444,-164.96479321,0.00038226,15]
[394779753,1763940634457,-335.03520679,0.00038226,15]
[394779754,1763940634467,-375.44206811,0.00038227,51]
[394779755,1763940634482,-1863.85793189,0.00038227,51]
[394779756,1763940634491,-170.159,0.00038227,51]
[394779757,1763940634500,-21.72636965,0.00038227,2]
[394779758,1763940634511,-885.27790424,0.00038227,2]
[394779759,1763940634522,-2269.0307535,0.00038227,2]
[394779760,1763940634533,-797.2953444,0.00038227,2]
[394779761,1763940634544,-14056.52422075,0.00038227,2]
[394779762,1763940634556,-312.0,0.00038227,2]
[394779763,1763940634568,-28436.86950746,0.00038227,2]
[394779764,1763940634577,-5000.0,0.00038227,30]
[394779765,1763940634587,-414.03172139,0.00038272,15]
[394779766,1763940634596,-500.0,0.00038272,15]
[394779767,1763940634606,-406.03503843,0.00038272,15]
[394779768,1763940634615,-187.15072373,0.00038272,15]
[394779769,1763940634625,-500.0,0.00038272,15]
[394779770,1763940634634,-500.0,0.00038272,15]
[394779771,1763940634645,-643.40469864,0.00038272,15]
[394779772,1763940634655,-413.58495286,0.00038273,5]
[394779773,1763940634665,-4126.26417949,0.00038316,4]
[394779774,1763940634675,-3615.30987947,0.00038317,4]
[394779775,1763940634688,-33774.40607594,0.00038317,4]
[394779776,1763940634717,-938.58626969,0.00038317,4]
[394779777,1763940634729,-1420.2,0.00038317,4]
[394779778,1763940638259,-999.0,0.000164,2]
[394779779,1763940638271,-309.60591375,0.000164,2]
[394779780,1763940638283,-1521.49312271,0.000164,2]
[394779781,1763940638293,-355.87700616,0.00037,3]
[394779782,1763940638305,-441.8807051,0.00037,3]
[394779783,1763940638315,-132550.20775955,0.00038317,4]
[394779784,1763940638327,-394.14575585,0.00038317,4]
[394779785,1763940638339,-3849.56934277,0.00038317,4]
[394779786,1763940638355,-2469.39715957,0.00038317,4]
[394779787,1763940638367,-2003.58187372,0.00038317,4]
[394779788,1763940638383,-3065.65,0.00038317,4]
[394779789,1763940638395,-11691.95300017,0.00038317,4]
[394779790,1763940638495,-2195.17890761,0.00038317,4]
[394779791,1763940638507,-16597.55130866,0.00038317,4]
[394779792,1763940638517,-151.0,0.00038324,14]
[394779793,1763940638528,-190.13197896,0.00038324,14]
[394779794,1763940638538,-500.0,0.00038326,8]
[394779795,1763940638548,-500.0,0.00038326,8]
[394779796,1763940638557,-285.11139362,0.00038326,8]
[394779797,1763940638567,-500.0,0.00038326,8]
[394779798,1763940638577,-500.0,0.00038326,8]
[394779799,1763940638587,-500.0,0.00038326,8]
[394779800,1763940638597,-500.0,0.00038326,8]
[394779801,1763940638607,-500.0,0.00038326,8]
[394779802,1763940638620,-500.0,0.00038326,8]
[394779803,1763940638630,-500.0,0.00038326,8]
[394779804,1763940638639,-500.0,0.00038326,8]
[394779805,1763940638649,-500.0,0.00038326,8]
[394779806,1763940638659,-314.72143615,0.00038326,8]
[394779808,1763940638669,-500.0,0.00038326,2]
[394779809,1763940638680,-500.0,0.00038326,2]
[394779810,1763940638690,-500.0,0.00038326,2]
[394779812,1763940638699,-36576.84597816,0.00038326,2]
[394779813,1763940638709,-287.38081911,0.00038356,8]
[394779815,1763940638719,-500.0,0.00038356,8]
[394779816,1763940638729,-211.79075118,0.00038356,8]
[394779818,1763940638739,-500.0,0.00038356,8]
[394779819,1763940638748,-503.75,0.00038356,8]
[394779820,1763940638758,-500.0,0.00038356,8]
[394779821,1763940638769,-500.0,0.00038356,8]
[394779822,1763940638779,-500.0,0.00038356,8]
[394779823,1763940638788,-644.38594582,0.00038356,8]
[394779824,1763940638798,-500.0,0.00038356,8]
[394779825,1763940638807,-500.0,0.00038356,8]
[394779826,1763940638820,-284.17,0.00038356,14]
[394779827,1763940638829,-500.0,0.00038356,8]
[394779828,1763940638839,-500.0,0.00038356,8]
[394779829,1763940638849,-500.0,0.00038356,8]
[394779830,1763940638859,-500.0,0.00038356,8]
[394779831,1763940638870,-500.0,0.00038356,8]
[394779832,1763940638880,-500.0,0.00038356,8]
[394779833,1763940638890,-500.0,0.00038356,8]
[394779834,1763940638900,-500.0,0.00038356,8]
[394779835,1763940638910,-500.0,0.00038356,8]
[394779836,1763940638920,-500.0,0.00038356,8]
[394779837,1763940638930,-500.0,0.00038356,8]
[394779838,1763940638939,-500.0,0.00038356,8]
[394779839,1763940638949,-500.0,0.00038356,8]
[394779840,1763940638959,-500.0,0.00038356,8]
[394779841,1763940638968,-500.0,0.00038356,8]
[394779842,1763940638979,-500.0,0.00038356,8]
[394779843,1763940638988,-500.00127748,0.00038356,8]
[394779844,1763940638998,-500.0,0.00038356,8]
[394779845,1763940639008,-500.0,0.00038356,8]
[394779846,1763940639021,-500.0,0.00038356,8]
[394779847,1763940639030,-500.0,0.00038356,8]
[394779848,1763940639040,-500.0,0.00038356,8]
[394779849,1763940639049,-500.0,0.00038356,8]
[394779850,1763940639058,-500.0,0.00038356,8]
[394779851,1763940639067,-629.86,0.00038356,8]
[394779852,1763940639077,-500.0,0.00038356,8]
[394779853,1763940639087,-500.0,0.00038356,8]
[394779854,1763940639097,-500.0,0.00038356,8]
[394779855,1763940639107,-500.0,0.00038356,7]
[394779856,1763940639116,-500.0,0.00038356,8]
[394779857,1763940639126,-500.0,0.00038356,8]
[394779858,1763940639136,-500.0,0.00038356,8]
[394779859,1763940639145,-500.0,0.00038356,8]
[394779860,1763940639155,-500.0,0.00038356,8]
[394779861,1763940639165,-500.0,0.00038356,8]
[394779862,1763940639175,-500.0,0.00038356,8]
[394779863,1763940639185,-500.0,0.00038356,8]
[394779864,1763940639194,-369.22585543,0.00038356,8]
[394779865,1763940639204,-500.0,0.00038356,8]
[394779866,1763940639217,-500.0,0.00038356,8]
[394779867,1763940639227,-500.0,0.00038356,8]
[394779868,1763940639236,-500.0,0.00038356,8]
[394779869,1763940639245,-500.0,0.00038356,8]
[394779870,1763940639255,-500.0,0.00038356,8]
[394779871,1763940639264,-500.0,0.00038356,8]
[394779872,1763940639273,-500.0,0.00038356,8]
[394779873,1763940639283,-500.0,0.00038356,2]
[394779874,1763940639292,-500.0,0.00038356,2]
[394779875,1763940639301,-500.0,0.00038356,8]
[394779876,1763940639310,-500.0,0.00038356,8]
[394779877,1763940639320,-500.0,0.00038356,8]
[394779878,1763940639329,-500.0,0.00038356,8]
[394779879,1763940639339,-500.0,0.00038356,10]
[394779880,1763940639351,-333.96759875,0.00038356,8]
[394779881,1763940639360,-500.0,0.00038356,8]
[394779882,1763940639369,-500.0,0.00038356,8]
[394779883,1763940639383,-500.0,0.00038356,8]
[394779884,1763940639392,-500.0,0.00038356,8]
[394779885,1763940639402,-500.0,0.00038356,8]
[394779886,1763940639412,-500.0,0.00038356,8]
[394779887,1763940639422,-500.0,0.00038356,8]
[394779888,1763940639434,-500.0,0.00038356,8]
[394779889,1763940639443,-500.0,0.00038356,8]
[394779890,1763940639453,-500.0,0.00038356,8]
[394779891,1763940639462,-500.0,0.00038356,8]
[394779892,1763940639471,-500.0,0.00038356,8]
[394779893,1763940639481,-500.0,0.00038356,8]
[394779894,1763940639490,-500.0,0.00038356,8]
[394779895,1763940639501,-500.0,0.00038356,8]
[394779896,1763940639510,-500.0,0.00038356,8]
[394779897,1763940639520,-500.0,0.00038356,8]
[394779898,1763940639529,-500.0,0.00038356,8]
[394779899,1763940639538,-500.0,0.00038356,8]
[394779900,1763940639547,-500.0,0.00038356,8]
[394779901,1763940639557,-500.0,0.00038356,8]
[394779902,1763940639566,-500.0,0.00038356,8]
[394779903,1763940639575,-500.0,0.00038356,8]
[394779904,1763940639585,-500.0,0.00038356,8]
[394779905,1763940639595,-500.0,0.00038356,8]
[394779906,1763940639604,-500.0,0.00038356,8]
[394779907,1763940639613,-500.0,0.00038356,8]
[394779908,1763940639623,-500.0,0.00038356,8]
[394779909,1763940639633,-500.0,0.00038356,8]
[394779910,1763940639642,-500.0,0.00038356,8]
[394779911,1763940639652,-500.0,0.00038356,8]
[394779912,1763940639661,-500.0,0.00038356,8]
[394779913,1763940639670,-500.0,0.00038356,8]
[394779914,1763940639680,-500.0,0.00038356,8]
[394779915,1763940639689,-500.0,0.00038356,8]
[394779916,1763940639699,-500.0,0.00038356,8]
[394779917,1763940639709,-500.0,0.00038356,8]
[394779918,1763940639718,-500.0,0.00038356,8]
[394779919,1763940639727,-500.0,0.00038356,8]
[394779920,1763940639945,-500.0,0.00038356,8]
[394779921,1763940639968,-500.0,0.00038356,8]
[394779922,1763940639977,-500.0,0.00038356,8]
[394779923,1763940639987,-500.0,0.00038356,8]
[394779924,1763940639996,-500.0,0.00038356,8]
[394779925,1763940640005,-500.0,0.00038356,8]
[394779926,1763940640015,-500.0,0.00038356,8]
[394779927,1763940640025,-500.0,0.00038356,8]
[394779928,1763940640034,-506.93,0.00038356,8]
[394779929,1763940640043,-500.0,0.00038356,8]
[394779930,1763940640052,-500.0,0.00038356,8]
[394779931,1763940640061,-500.0,0.00038356,8]
[394779932,1763940640070,-500.0,0.00038356,8]
[394779933,1763940640079,-500.0,0.00038356,8]
[394779934,1763940640089,-500.0,0.00038356,8]
[394779935,1763940640099,-500.0,0.00038356,8]
[394779936,1763940640108,-500.0,0.00038356,8]
[394779937,1763940640117,-500.0,0.00038356,8]
[394779938,1763940640126,-500.0,0.00038356,8]
[394779939,1763940640135,-534.81107374,0.00038356,8]
[394779940,1763940640144,-500.0,0.00038356,8]
[394779941,1763940640154,-500.0,0.00038356,8]
[394779942,1763940640163,-500.0,0.00038356,8]
[394779943,1763940640172,-500.0,0.00038356,8]
[394779944,1763940640181,-500.0,0.00038356,8]
[394779945,1763940640192,-500.0,0.00038356,8]
[394779946,1763940640201,-500.0,0.00038356,8]
[394779947,1763940640210,-500.0,0.00038356,8]
[394779948,1763940640219,-500.0,0.00038356,8]
[394779949,1763940640229,-500.0,0.00038356,8]
[394779950,1763940640242,-500.0,0.00038356,8]
[394779951,1763940640251,-500.0,0.00038356,8]
[394779952,1763940640260,-249.90525018,0.00038356,8]
[394779953,1763940640270,-500.0,0.00038356,8]
[394779954,1763940640279,-500.0,0.00038356,8]
[394779955,1763940640289,-500.0,0.00038356,8]
[394779956,1763940640298,-500.0,0.00038356,8]
[394779957,1763940640307,-500.0,0.00038356,8]
[394779958,1763940640317,-500.0,0.00038356,8]
[394779959,1763940640326,-500.0,0.00038356,8]
[394779960,1763940640335,-500.0,0.00038356,8]
[394779961,1763940640344,-500.0,0.00038356,8]
[394779962,1763940640354,-500.0,0.00038356,8]
[394779963,1763940640364,-500.0,0.00038356,8]
[394779964,1763940640375,-500.0,0.00038356,8]
[394779965,1763940640387,-500.0,0.00038356,8]
[394779967,1763940640396,-500.0,0.00038356,8]
[394779969,1763940640406,-500.0,0.00038356,8]
[394779970,1763940640415,-500.0,0.00038356,8]
[394779971,1763940640425,-500.0,0.00038356,8]
[394779972,1763940640434,-570.07158315,0.00038356,8]
[394779973,1763940640444,-500.0,0.00038356,8]
[394779974,1763940640455,-500.0,0.00038356,8]
[394779975,1763940640464,-500.0,0.00038356,8]
[394779976,1763940640473,-500.0,0.00038356,8]
[394779977,1763940640482,-500.0,0.00038356,8]
[394779978,1763940640492,-427.3828348,0.00038356,8]
[394779979,1763940640501,-500.0,0.00038356,8]
[394779980,1763940640510,-500.0,0.00038356,8]
[394779981,1763940640520,-500.0,0.00038356,8]
[394779982,1763940640529,-500.0,0.00038356,8]
[394779983,1763940640539,-500.0,0.00038356,8]
[394779984,1763940640549,-332.96699416,0.00038356,8]
[394779985,1763940640558,-500.0,0.00038356,8]
[394779986,1763940640567,-919.38,0.00038356,8]
[394779987,1763940640576,-500.0,0.00038356,8]
[394779988,1763940640586,-500.0,0.00038356,8]
[394779989,1763940640595,-500.0,0.00038356,8]
[394779990,1763940640604,-500.0,0.00038356,8]
[394779991,1763940640613,-500.0,0.00038356,8]
[394779992,1763940640622,-500.0,0.00038356,8]
[394779993,1763940640631,-150.07264217,0.00038356,8]
[394779994,1763940640640,-500.0,0.00038356,8]
[394779995,1763940640650,-500.0,0.00038356,8]
[394779996,1763940640660,-500.0,0.00038356,8]
[394779997,1763940640670,-500.0,0.00038356,8]
[394779998,1763940640679,-500.0,0.00038356,8]
[394779999,1763940640688,-610.79150869,0.00038356,8]
[394780000,1763940640697,-500.0,0.00038356,8]
[394780001,1763940640706,-500.0,0.00038356,8]
[394780002,1763940640716,-500.0,0.00038356,2]
[394780003,1763940640725,-500.0,0.00038356,2]
[394780004,1763940640734,-500.0,0.00038356,8]
[394780005,1763940640743,-500.0,0.00038356,8]
[394780006,1763940640752,-500.0,0.00038356,8]
[394780007,1763940640761,-500.0,0.00038356,8]
[394780008,1763940640771,-500.0,0.00038356,8]
[394780009,1763940640780,-500.0,0.00038356,8]
[394780010,1763940640791,-500.0,0.00038356,8]
[394780011,1763940640800,-259.18677638,0.00038356,8]
[394780012,1763940640811,-500.0,0.00038356,8]
[394780013,1763940640822,-106.62946316,0.00038356,8]
[394780014,1763940640839,-285.06134771,0.00038356,8]
[394780017,1763940640929,-108.30918913,0.00038356,8]
[394780018,1763940640939,-500.0,0.00038356,8]
[394780019,1763940640949,-500.0,0.00038356,8]
[394780020,1763940640959,-500.0,0.00038356,8]
[394780021,1763940640969,-500.0,0.00038356,8]
[394780022,1763940640978,-500.0,0.00038356,8]
[394780023,1763940640988,-500.0,0.00038356,8]
[394780024,1763940640998,-500.0,0.00038356,8]
[394780025,1763940641007,-500.0,0.00038356,8]
[394780026,1763940641017,-500.0,0.00038356,8]
[394780028,1763940641027,-500.0,0.00038356,2]
[394780030,1763940641036,-500.0,0.00038356,8]
[394780032,1763940641045,-500.0,0.00038356,8]
[394780034,1763940641055,-500.0,0.00038356,8]
[394780036,1763940641064,-500.0,0.00038356,8]
[394780037,1763940641074,-500.0,0.00038356,8]
[394780038,1763940641084,-500.0,0.00038356,8]
[394780039,1763940641094,-500.0,0.00038356,8]
[394780040,1763940641103,-500.0,0.00038356,8]
[394780041,1763940641112,-500.0,0.00038356,8]
[394780042,1763940641121,-500.0,0.00038356,8]
[394780043,1763940641130,-500.0,0.00038356,8]
[394780044,1763940641139,-500.0,0.00038356,8]
[394780047,1763940641148,-500.0,0.00038356,8]
[394780049,1763940641158,-500.0,0.00038356,8]
[394780050,1763940641167,-500.0,0.00038356,8]
[394780051,1763940641179,-500.0,0.00038356,8]
[394780052,1763940641189,-500.0,0.00038356,8]
[394780053,1763940641199,-500.0,0.00038356,8]
[394780054,1763940641211,-1053.94,0.00038356,8]
[394780055,1763940641221,-500.0,0.00038356,8]
[394780056,1763940641230,-500.0,0.00038356,8]
[394780057,1763940641239,-500.0,0.00038356,8]
[394780058,1763940641248,-500.0,0.00038356,8]
[394780059,1763940641258,-500.0,0.00038356,8]
[394780060,1763940641267,-455.79699307,0.00038356,8]
[394780061,1763940641279,-44.20300693,0.00038356,8]
[394780062,1763940641288,-500.0,0.00038356,8]
[394780063,1763940641297,-138.61429818,0.00038356,8]
[394780064,1763940641310,-361.38570182,0.00038356,8]
[394780065,1763940641319,-500.0,0.00038356,8]
[394780066,1763940641329,-500.0,0.00038356,8]
[394780067,1763940641338,-500.0,0.00038356,8]
[394780068,1763940641348,-500.0,0.00038356,8]
[394780069,1763940641357,-263.84208066,0.00038356,8]
[394780070,1763940641367,-500.0,0.00038356,8]
[394780071,1763940641378,-500.0,0.00038356,8]
[394780072,1763940641387,-500.0,0.00038356,8]
[394780073,1763940641397,-500.0,0.00038356,8]
[394780074,1763940641408,-500.0,0.00038356,8]
[394780075,1763940641419,-500.0,0.00038356,8]
[394780076,1763940641428,-500.0,0.00038356,8]
[394780077,1763940641438,-500.0,0.00038356,8]
[394780078,1763940641447,-500.0,0.00038356,8]
[394780079,1763940641458,-500.0,0.00038356,8]
[394780080,1763940641467,-500.0,0.00038356,8]
[394780081,1763940641476,-500.0,0.00038356,8]
[394780082,1763940641485,-500.0,0.00038356,8]
[394780083,1763940641494,-500.0,0.00038356,8]
[394780084,1763940641504,-500.0,0.00038356,8]
[394780085,1763940641513,-596.94386131,0.00038356,8]
[394780086,1763940641522,-500.0,0.00038356,8]
[394780087,1763940641531,-500.0,0.00038356,8]
[394780088,1763940641540,-1000.0,0.00038356,8]
[394780089,1763940641549,-500.0,0.00038356,8]
[394780090,1763940641559,-500.0,0.00038356,8]
[394780091,1763940641568,-162.32762047,0.00038356,2]
[394780092,1763940641578,-600.0,0.00038356,30]